bitfinex/quotes_BTCUSD_20250108
["timestamp","ask_amount","ask_price","bid_price","bid_amount"]
[1736305258489,0.56953962,96877.0,96876.0,0.16441332]
[1736305258898,0.56953962,96877.0,96876.0,0.17793333]
[1736305259353,0.33207062,96877.0,96876.0,0.17793333]
[1736305259779,0.46118362,96877.0,96876.0,0.17793333]
[1736305259995,0.31098762,96877.0,96876.0,0.17793333]
[1736305260220,0.14832662,96877.0,96876.0,0.17793333]
[1736305261346,0.54876662,96877.0,96876.0,0.17793333]
[1736305261759,0.42645562,96877.0,96876.0,0.17896547]
[1736305261979,0.00010479,96893.0,96877.0,0.023]
[1736305262202,0.405131,96892.0,96879.0,0.1294]
[1736305262423,0.405131,96892.0,96880.0,0.28857201]
[1736305262640,0.405131,96892.0,96880.0,0.29625884]
[1736305262848,0.405131,96892.0,96882.0,0.206436]
[1736305263081,0.405131,96892.0,96886.0,0.206428]
[1736305263281,0.226833,96892.0,96886.0,0.206428]
[1736305263496,0.263298,96891.0,96887.0,0.00693092]
[1736305263708,0.200203,96890.0,96887.0,0.04322952]
[1736305263909,0.00010479,96893.0,96888.0,0.29498594]
[1736305264124,0.116398,96892.0,96888.0,0.29498594]
[1736305264332,0.00010479,96893.0,96890.0,0.206419]
[1736305264555,0.177037,96892.0,96891.0,0.0010319]
[1736305264923,0.177037,96892.0,96891.0,0.05016044]
[1736305264924,0.161659,96892.0,96891.0,0.05016044]
[1736305265123,0.161659,96892.0,96891.0,0.04322952]
[1736305265346,0.161659,96892.0,96891.0,0.05016044]
[1736305265761,0.161659,96892.0,96891.0,0.142396]
[1736305266393,0.161659,96892.0,96891.0,0.15256117]
[1736305266604,0.161659,96892.0,96891.0,0.06032561]
[1736305267041,0.161659,96892.0,96891.0,0.06132561]
[1736305267686,0.15,96891.0,96889.0,0.07099217]
[1736305267900,1.902122,96891.0,96890.0,0.07099217]
[1736305268110,1.838125,96891.0,96890.0,0.07099217]
[1736305268723,1.838125,96891.0,96867.0,0.01640817]
[1736305268724,0.15,96883.0,96872.0,0.13835334]
[1736305268969,0.989115,96882.0,96873.0,0.00103213]
[1736305269148,0.823475,96881.0,96873.0,0.00103213]
[1736305269348,0.15,96883.0,96873.0,0.13938547]
[1736305269349,0.806433,96880.0,96873.0,0.13938547]
[1736305269550,0.670559,96879.0,96873.0,0.13938547]
[1736305269686,0.671349,96878.0,96873.0,0.13938547]
[1736305269919,0.688668,96877.0,96875.0,0.13835334]
[1736305270765,0.688668,96877.0,96876.0,0.00777823]
[1736305271396,0.349636,96877.0,96876.0,0.00777823]
[1736305272250,0.349636,96877.0,96876.0,0.34797049]
[1736305272452,0.15,96888.0,96876.0,0.34797049]
[1736305272668,0.15,96881.0,96877.0,0.0010321]
[1736305272840,2.442563,96880.0,96876.0,0.34797049]
[1736305273078,2.442563,96880.0,96878.0,0.00770823]
[1736305273559,2.442563,96880.0,96879.0,0.00770823]
[1736305274875,2.442563,96880.0,96879.0,0.08430823]
[1736305277166,2.442563,96880.0,96879.0,0.10473007]
[1736305277824,0.01033446,96890.0,96879.0,0.10473007]
[1736305277825,0.15,96891.0,96879.0,0.15013007]
[1736305278069,2.442563,96890.0,96880.0,0.03218385]
[1736305278282,2.442563,96890.0,96880.0,0.04333591]
[1736305278492,2.442563,96890.0,96881.0,0.206438]
[1736305278711,2.442563,96890.0,96883.0,0.206434]
[1736305278922,2.442563,96890.0,96888.0,0.09237583]
[1736305278923,0.24903441,96889.0,96888.0,0.09237583]
[1736305279135,2.69159741,96889.0,96888.0,0.09237583]
[1736305279775,0.206434,96883.0,96882.0,0.09237583]
[1736305279996,2.648997,96883.0,96882.0,0.09237583]
[1736305280414,2.648997,96883.0,96882.0,0.00773346]
[1736305280615,2.648997,96883.0,96882.0,0.0179468]
[1736305280855,2.648997,96883.0,96882.0,0.0245716]
[1736305282592,2.648997,96883.0,96882.0,0.05678941]
[1736305283012,2.648997,96883.0,96882.0,0.06540139]
[1736305283400,2.648997,96883.0,96882.0,0.03318358]
[1736305284168,2.648997,96883.0,96882.0,0.55925846]
[1736305284368,2.648997,96883.0,96882.0,0.56479438]
[1736305284784,2.648997,96883.0,96882.0,0.38032325]
[1736305285008,3.08202448,96883.0,96882.0,0.37478733]
[1736305285225,2.99142446,96883.0,96882.0,0.37478733]
[1736305285470,3.04654446,96883.0,96882.0,0.34160375]
[1736305285747,0.356443,96879.0,96878.0,0.09259845]
[1736305285946,2.89804041,96879.0,96878.0,0.09259845]
[1736305286631,0.15,96878.0,96877.0,0.09259845]
[1736305286870,2.69159741,96878.0,96877.0,0.09259845]
[1736305287076,2.69159741,96878.0,96869.0,0.23067431]
[1736305287077,2.69159741,96878.0,96876.0,0.13896767]
[1736305287310,2.89804441,96877.0,96876.0,0.13896767]
[1736305287761,2.41046441,96877.0,96876.0,0.13896767]
[1736305287957,2.31524741,96877.0,96876.0,0.0927669]
[1736305288165,2.05966241,96877.0,96876.0,0.0927669]
[1736305289214,2.05966241,96877.0,96876.0,0.10286406]
[1736305289426,2.05966241,96877.0,96876.0,0.10845362]
[1736305289915,2.05966241,96877.0,96876.0,0.01575672]
[1736305290095,2.05966241,96877.0,96876.0,0.01016716]
[1736305290666,2.05966241,96877.0,96876.0,7e-05]
[1736305291907,2.05966241,96877.0,96876.0,0.01016422]
[1736305292845,1.360889,96877.0,96876.0,0.01016422]
[1736305293945,1.360889,96877.0,96876.0,0.02631858]
[1736305294168,1.45992341,96877.0,96876.0,0.02631858]
[1736305295010,1.45992341,96877.0,96876.0,0.01574573]
[1736305295650,0.24903441,96877.0,96876.0,0.01574573]
[1736305295857,2.69159741,96877.0,96876.0,0.01016422]
[1736305296063,2.62647641,96877.0,96876.0,0.01016422]
[1736305297372,2.24161341,96877.0,96876.0,0.01016422]
[1736305298007,0.994406,96877.0,96876.0,0.08536422]
[1736305298635,0.994406,96877.0,96876.0,0.01016422]
[1736305299064,0.994406,96877.0,96876.0,0.02633094]
[1736305299719,0.994406,96877.0,96876.0,0.03193383]
[1736305300203,0.994406,96877.0,96876.0,0.1708315]
[1736305300459,0.844406,96877.0,96876.0,0.1708315]
[1736305300687,0.206447,96877.0,96876.0,0.1708315]
[1736305300932,2.343816,96877.0,96876.0,0.55947376]
[1736305301191,2.343816,96877.0,96876.0,0.55387087]
[1736305301420,2.183816,96877.0,96876.0,0.55947376]
[1736305301653,1.690583,96877.0,96876.0,0.37427686]
[1736305302720,2.01611741,96877.0,96876.0,0.37427686]
[1736305303146,2.01611741,96877.0,96876.0,0.35811014]
[1736305303353,1.93961741,96877.0,96876.0,0.35811014]
[1736305303959,1.93961741,96877.0,96876.0,0.01576711]
[1736305304355,1.93961741,96877.0,96876.0,0.01016422]
[1736305304737,1.93926645,96877.0,96876.0,0.01016422]
[1736305306700,1.93896645,96877.0,96876.0,0.01016422]
[1736305308978,1.93896645,96877.0,96876.0,7e-05]
[1736305309352,1.93896645,96877.0,96876.0,0.01017323]
[1736305309559,1.93896645,96877.0,96876.0,0.00517323]
[1736305310171,1.93896645,96877.0,96876.0,0.02134106]
[1736305310724,1.93896645,96877.0,96876.0,0.11408856]
[1736305311347,0.800531,96877.0,96876.0,0.11408856]
[1736305311584,0.753624,96877.0,96876.0,0.02693254]
[1736305311773,0.15,96879.0,96876.0,0.02693254]
[1736305311962,0.98456,96878.0,96876.0,0.02693254]
[1736305312096,0.974017,96878.0,96876.0,0.02134106]
[1736305312318,2.442563,96878.0,96877.0,0.00559148]
[1736305312549,2.442563,96878.0,96877.0,0.56412955]
[1736305312752,2.442563,96878.0,96877.0,0.56972103]
[1736305313366,2.442563,96878.0,96877.0,0.38452413]
[1736305314182,2.649006,96879.0,96877.0,0.62285594]
[1736305314411,2.442563,96878.0,96877.0,0.62285594]
[1736305314583,2.442563,96878.0,96877.0,0.57872947]
[1736305315266,2.442563,96878.0,96877.0,0.61513035]
[1736305316137,2.442563,96878.0,96877.0,0.36431811]
[1736305316336,2.69159741,96878.0,96877.0,0.36431811]
[1736305316542,2.69159741,96878.0,96877.0,0.35872663]
[1736305316750,2.69159741,96878.0,96877.0,0.54441889]
[1736305316956,2.69159741,96878.0,96877.0,0.55001037]
[1736305317369,2.69159741,96878.0,96877.0,0.53383282]
[1736305317789,2.69159741,96878.0,96877.0,0.00559148]
[1736305318218,0.562894,96877.0,96872.0,0.09285632]
[1736305318423,0.09903441,96876.0,96872.0,0.09285632]
[1736305318595,0.15,96874.0,96873.0,0.09285632]
[1736305318815,2.69159741,96874.0,96873.0,0.09285632]
[1736305319610,2.69159741,96874.0,96872.0,0.09285632]
[1736305319811,2.69159741,96873.0,96872.0,0.09285632]
[1736305320622,0.356458,96872.0,96870.0,0.13928448]
[1736305320844,0.09903441,96871.0,96870.0,0.13928448]
[1736305321091,2.69159741,96871.0,96870.0,0.13928448]
[1736305322025,2.69159741,96871.0,96870.0,0.14939145]
[1736305322218,2.69159741,96871.0,96870.0,0.01010697]
[1736305323939,2.69159741,96871.0,96870.0,0.10294601]
[1736305323940,2.74679741,96871.0,96870.0,0.10294601]
[1736305324150,2.82489741,96871.0,96870.0,0.10294601]
[1736305324558,2.82489741,96871.0,96870.0,0.01010697]
[1736305324760,2.82489741,96871.0,96870.0,0.00900697]
[1736305324969,0.356462,96870.0,96869.0,8.54e-05]
[1736305325113,2.89805941,96870.0,96869.0,8.54e-05]
[1736305325327,0.1244,96869.0,96865.0,0.05162644]
[1736305325532,0.530877,96863.0,96862.0,0.02976874]
[1736305325745,0.1,96857.0,96856.0,0.17274983]
[1736305325940,2.86799741,96857.0,96856.0,0.17274983]
[1736305326343,2.86799741,96857.0,96856.0,0.05712794]
[1736305326499,2.86799741,96857.0,96838.0,0.40866023]
[1736305326500,0.1,96841.0,96838.0,8.55e-05]
[1736305326710,0.53196241,96839.0,96838.0,8.55e-05]
[1736305326929,3.37452541,96839.0,96838.0,8.55e-05]
[1736305327350,3.37452541,96839.0,96810.0,0.00772837]
[1736305327351,0.206573,96818.0,96810.0,0.00772837]
[1736305327594,3.03237041,96818.0,96809.0,0.00659927]
[1736305327801,3.03237041,96818.0,96805.0,0.00071537]
[1736305328219,3.03237041,96818.0,96779.0,0.0800855]
[1736305328220,0.15,96802.0,96787.0,0.00772837]
[1736305328431,2.69159741,96801.0,96787.0,0.00772837]
[1736305328633,3.41473641,96801.0,96800.0,0.00059057]
[1736305328852,3.56993641,96801.0,96800.0,0.00059057]
[1736305329063,3.66897082,96801.0,96800.0,0.00059057]
[1736305329485,0.25,96800.0,96779.0,8.55e-05]
[1736305329693,3.30812741,96800.0,96799.0,0.00025593]
[1736305330311,3.30812741,96800.0,96779.0,8.55e-05]
[1736305330312,0.206654,96780.0,96779.0,8.55e-05]
[1736305330522,1.02741841,96780.0,96779.0,0.00023855]
[1736305330974,3.46998141,96780.0,96779.0,0.00023855]
[1736305331186,1.02741841,96780.0,96779.0,0.00023855]
[1736305331395,3.46998141,96780.0,96779.0,0.00023855]
[1736305331609,0.356686,96765.0,96746.0,0.04731537]
[1736305331813,3.41481341,96765.0,96764.0,0.01464415]
[1736305333941,3.41471341,96765.0,96764.0,0.01464415]
[1736305334146,3.4248545,96765.0,96764.0,0.01464415]
[1736305334578,3.41471341,96765.0,96764.0,0.03764415]
[1736305335464,3.41471341,96765.0,96764.0,0.01464415]
[1736305335909,3.41080215,96765.0,96764.0,0.01464415]
[1736305336366,3.37117924,96765.0,96764.0,0.01464415]
[1736305336570,3.36817443,96765.0,96764.0,0.01464415]
[1736305338041,3.39363805,96765.0,96764.0,0.01464415]
[1736305338241,3.41013753,96765.0,96764.0,0.01464415]
[1736305338462,3.00179215,96765.0,96764.0,0.01464415]
[1736305338676,3.00253552,96765.0,96764.0,0.01464415]
[1736305338910,3.20922152,96765.0,96764.0,0.01190808]
[1736305339115,0.3,96760.0,96745.0,7e-05]
[1736305339326,0.206726,96746.0,96745.0,0.00057973]
[1736305339542,2.74832341,96746.0,96745.0,0.00057973]
[1736305339946,3.15643293,96746.0,96745.0,0.00057973]
[1736305340577,3.30643293,96746.0,96745.0,0.00057973]
[1736305342055,3.05739852,96746.0,96745.0,0.00057973]
[1736305342271,2.11234952,96746.0,96745.0,0.00057973]
[1736305342952,0.61483552,96746.0,96745.0,0.00057973]
[1736305343157,3.05739852,96746.0,96745.0,0.00057973]
[1736305343376,0.40810952,96746.0,96745.0,0.15247973]
[1736305343585,0.1,96790.0,96745.0,0.15247973]
[1736305343586,0.206655,96780.0,96747.0,0.0795]
[1736305343789,0.326673,96779.0,96761.0,0.023]
[1736305344025,0.206645,96784.0,96762.0,0.00103328]
[1736305344243,0.3802,96808.0,96760.0,0.12269433]
[1736305344244,0.09903441,96800.0,96773.0,0.1]
[1736305344442,0.09903441,96800.0,96771.0,0.0716]
[1736305344443,0.11253,96799.0,96780.0,0.12269433]
[1736305344648,0.1,96821.0,96775.0,0.1]
[1736305344649,0.20658,96815.0,96789.0,0.12269433]
[1736305344861,0.64753441,96814.0,96792.0,0.023]
[1736305345069,0.206577,96817.0,96792.0,0.023]
[1736305345070,0.595613,96813.0,96793.0,0.00103292]
[1736305345286,0.206579,96815.0,96795.0,0.023]
[1736305345494,0.364803,96814.0,96798.0,0.023]
[1736305345701,0.364803,96814.0,96799.0,0.00103288]
[1736305345903,0.321554,96814.0,96799.0,0.0069552]
[1736305346110,0.150503,96814.0,96800.0,0.023]
[1736305346312,0.201782,96814.0,96802.0,0.023]
[1736305346512,1.696755,96821.0,96804.0,0.206603]
[1736305346762,1.895987,96822.0,96801.0,0.206609]
[1736305346967,1.032292,96822.0,96810.0,0.12269433]
[1736305347320,0.06084,96864.0,96811.0,0.02403279]
[1736305347528,0.09903441,96857.0,96812.0,0.09903441]
[1736305347725,0.206508,96849.0,96823.0,0.206562]
[1736305347906,0.206508,96849.0,96828.0,0.023]
[1736305347907,0.206511,96847.0,96828.0,0.023]
[1736305348106,2.29195,96846.0,96829.0,0.00103254]
[1736305348333,0.206515,96845.0,96829.0,0.00103254]
[1736305348533,1.606057,96845.0,96829.0,0.00103254]
[1736305348830,1.626016,96844.0,96830.0,0.09150444]
[1736305348963,1.469117,96843.0,96831.0,0.00103256]
[1736305349169,0.413043,96842.0,96831.0,0.00103256]
[1736305349385,0.15,96831.0,96830.0,0.11772763]
[1736305349594,2.44195,96831.0,96830.0,0.10777611]
[1736305349817,1.604092,96831.0,96830.0,0.11345514]
[1736305350011,1.553457,96831.0,96830.0,0.01627167]
[1736305350216,1.553457,96831.0,96830.0,0.02635087]
[1736305350455,1.65249141,96831.0,96830.0,0.01023228]
[1736305350667,1.65249141,96831.0,96830.0,0.14812432]
[1736305351494,1.65249141,96831.0,96830.0,0.13804512]
[1736305351692,2.11234985,96831.0,96830.0,0.00015308]
[1736305351968,2.14315721,96831.0,96830.0,0.00015308]
[1736305352131,1.72869141,96831.0,96830.0,0.00115308]
[1736305352287,1.72869141,96831.0,96830.0,0.00015308]
[1736305352535,1.72869141,96831.0,96830.0,0.00115308]
[1736305353279,1.82837051,96831.0,96830.0,0.00115308]
[1736305353527,1.8476359,96831.0,96830.0,0.00015308]
[1736305353760,1.8516359,96831.0,96830.0,0.00015308]
[1736305353985,1.87316195,96831.0,96830.0,0.00015308]
[1736305354847,1.85389656,96831.0,96830.0,0.00015308]
[1736305355142,1.65752398,96831.0,96830.0,0.00015308]
[1736305355385,1.51584488,96831.0,96830.0,0.00015308]
[1736305355965,0.10703441,96831.0,96830.0,0.00015308]
[1736305356162,2.39098441,96831.0,96830.0,0.00015308]
[1736305356406,2.54098441,96831.0,96830.0,0.00115308]
[1736305356782,2.54098441,96831.0,96830.0,0.00015308]
[1736305356990,2.4893969,96831.0,96830.0,0.00015308]
[1736305357191,2.48939741,96831.0,96830.0,0.00015308]
[1736305357367,2.49475021,96831.0,96830.0,0.00015308]
[1736305357801,0.00029503,96811.0,96800.0,0.206611]
[1736305358143,0.352525,96810.0,96804.0,0.023]
[1736305358354,0.00029503,96811.0,96805.0,0.00103286]
[1736305358355,0.418201,96809.0,96805.0,0.00103286]
[1736305358566,0.920571,96808.0,96804.0,0.023]
[1736305358739,0.30324,96807.0,96806.0,0.03146195]
[1736305358971,0.28724,96807.0,96806.0,0.02629822]
[1736305359194,0.28724,96807.0,96806.0,0.03146195]
[1736305359421,0.28724,96807.0,96806.0,0.15349636]
[1736305359642,0.266556,96807.0,96806.0,0.15349636]
[1736305359926,0.111418,96807.0,96806.0,0.15349636]
[1736305360162,0.413122,96824.0,96806.0,0.03146195]
[1736305360163,0.206574,96818.0,96806.0,0.03146195]
[1736305360389,2.128945,96817.0,96806.0,0.03146195]
[1736305360642,2.128945,96817.0,96807.0,0.023]
[1736305360877,0.206564,96822.0,96807.0,0.023]
[1736305361086,2.128945,96821.0,96808.0,0.20762679]
[1736305361199,2.128945,96823.0,96808.0,0.23392501]
[1736305361608,2.128945,96823.0,96811.0,0.023]
[1736305361843,0.206558,96825.0,96812.0,0.00103276]
[1736305362090,0.206562,96823.0,96813.0,0.00103275]
[1736305362263,2.128945,96822.0,96813.0,0.00103275]
[1736305362645,0.206558,96825.0,96814.0,0.01011428]
[1736305362842,2.128945,96824.0,96814.0,0.01011428]
[1736305363070,2.128945,96829.0,96815.0,0.01011428]
[1736305363278,0.206579,96816.0,96815.0,0.01011428]
[1736305363560,2.128945,96816.0,96815.0,0.01011428]
[1736305363713,0.206568,96820.0,96815.0,0.01011428]
[1736305363935,2.128945,96819.0,96815.0,0.01011428]
[1736305364256,0.206573,96818.0,96815.0,0.01011428]
[1736305364480,0.206577,96816.0,96805.0,0.00103278]
[1736305364680,2.128945,96815.0,96814.0,0.001]
[1736305365090,0.206595,96808.0,96800.0,0.00103284]
[1736305365306,2.128945,96807.0,96801.0,0.09155042]
[1736305365566,2.128945,96807.0,96801.0,0.09672902]
[1736305365814,2.128945,96807.0,96801.0,0.09155042]
[1736305366051,0.206585,96812.0,96802.0,0.01011219]
[1736305366313,2.128945,96811.0,96802.0,0.01529079]
[1736305366584,0.20659,96810.0,96803.0,0.01011219]
[1736305366826,2.128945,96809.0,96803.0,0.01011219]
[1736305367306,2.128945,96809.0,96799.0,0.00103289]
[1736305367307,2.128945,96809.0,96804.0,0.01011219]
[1736305367552,2.128945,96813.0,96804.0,0.01011219]
[1736305367775,2.128945,96813.0,96805.0,0.33977849]
[1736305367977,0.206563,96823.0,96805.0,0.13835809]
[1736305367978,0.206575,96817.0,96805.0,0.13835809]
[1736305368197,2.128945,96816.0,96805.0,0.13317949]
[1736305368410,2.128945,96816.0,96807.0,0.023]
[1736305368617,2.128945,96816.0,96808.0,0.00103281]
[1736305369032,2.128945,96816.0,96808.0,0.011145]
[1736305369438,0.206566,96821.0,96808.0,0.011145]
[1736305369683,0.206563,96823.0,96809.0,0.00103278]
[1736305369684,2.128945,96820.0,96809.0,0.00103278]
[1736305369862,2.128945,96822.0,96810.0,0.00103279]
[1736305370220,0.206563,96823.0,96810.0,0.00103279]
[1736305370426,2.128945,96822.0,96810.0,0.00103279]
[1736305370766,0.20656,96824.0,96811.0,0.01529079]
[1736305370967,1.325423,96823.0,96812.0,0.02403277]
[1736305371182,2.128945,96827.0,96812.0,0.02403277]
[1736305371397,2.062984,96827.0,96813.0,0.25319643]
[1736305371611,0.206558,96825.0,96814.0,0.00103273]
[1736305371809,2.12499999,96824.0,96815.0,0.00103274]
[1736305372014,0.206553,96828.0,96816.0,0.09155042]
[1736305372015,2.125,96827.0,96816.0,0.09155042]
[1736305372221,0.66453364,96826.0,96818.0,0.0789]
[1736305372459,0.467018,96825.0,96820.0,0.206568]
[1736305372660,1.450136,96824.0,96821.0,0.023]
[1736305372874,1.475019,96823.0,96821.0,0.023]
[1736305373115,1.475019,96823.0,96814.0,0.1]
[1736305373116,0.20656,96824.0,96822.0,0.0263342]
[1736305373298,1.607893,96823.0,96822.0,0.0263342]
[1736305373711,0.413128,96822.0,96812.0,0.02033023]
[1736305373934,0.206568,96820.0,96812.0,0.02033023]
[1736305374152,1.607893,96819.0,96813.0,0.03309683]
[1736305374404,0.206573,96818.0,96813.0,0.03309683]
[1736305374625,1.607893,96817.0,96814.0,0.00662518]
[1736305374842,1.607893,96817.0,96816.0,0.001]
[1736305375051,1.607893,96821.0,96814.0,0.03309683]
[1736305375281,0.206568,96820.0,96816.0,0.03309683]
[1736305375483,1.607893,96819.0,96816.0,0.02647165]
[1736305375871,1.607893,96819.0,96817.0,0.02647165]
[1736305376087,1.607893,96819.0,96817.0,0.03309683]
[1736305376402,1.607893,96819.0,96818.0,0.00662518]
[1736305376621,1.607893,96819.0,96818.0,0.03309683]
[1736305376831,1.584868,96819.0,96818.0,0.02647165]
[1736305377037,1.584868,96819.0,96818.0,0.01018098]
[1736305378384,1.607893,96821.0,96818.0,0.01018098]
[1736305378588,1.607893,96828.0,96818.0,0.01018098]
[1736305378869,0.206524,96841.0,96818.0,0.01018098]
[1736305378870,1.607893,96830.0,96821.0,0.023]
[1736305379076,1.607893,96835.0,96821.0,0.02403267]
[1736305379256,1.607893,96835.0,96822.0,0.2193888]
[1736305379389,0.206536,96836.0,96822.0,0.00766214]
[1736305379598,1.607893,96835.0,96823.0,0.0066295]
[1736305379804,1.607893,96835.0,96824.0,0.00103264]
[1736305380007,1.607893,96835.0,96824.0,0.0061953]
[1736305380210,1.607893,96835.0,96826.0,0.206556]
[1736305380417,1.607893,96841.0,96828.0,0.023]
[1736305380622,0.206526,96840.0,96827.0,0.00516266]
[1736305380870,1.388774,96839.0,96829.0,0.00662961]
[1736305381077,0.06192,96863.0,96835.0,0.206536]
[1736305381078,0.206509,96848.0,96835.0,0.206536]
[1736305381277,0.206509,96848.0,96836.0,0.00091787]
[1736305381500,0.206501,96852.0,96837.0,0.0060613]
[1736305381705,0.00011549,96848.0,96838.0,0.20653]
[1736305381903,0.17066,96847.0,96842.0,0.0753]
[1736305382105,0.00011549,96848.0,96846.0,0.206513]
[1736305382304,0.00011549,96848.0,96842.0,0.0753]
[1736305382305,1.607893,96847.0,96842.0,0.0753]
[1736305382516,1.607893,96847.0,96843.0,0.01629399]
[1736305382712,1.607893,96847.0,96843.0,0.03310139]
[1736305382928,1.607893,96847.0,96844.0,0.01629399]
[1736305383310,0.206513,96846.0,96843.0,0.01018098]
[1736305383507,1.607893,96845.0,96844.0,0.01018098]
[1736305384326,1.780893,96845.0,96844.0,0.01018098]
[1736305384587,1.87992741,96845.0,96844.0,0.01018098]
[1736305384873,1.87992741,96845.0,96830.0,0.09155042]
[1736305384874,0.173,96844.0,96830.0,0.09155042]
[1736305385093,0.17429079,96843.0,96821.0,0.09155042]
[1736305385299,0.023,96826.0,96821.0,0.09246855]
[1736305385500,0.023,96826.0,96822.0,0.01017228]
[1736305385501,0.023,96824.0,96822.0,0.01017228]
[1736305385709,1.630893,96823.0,96822.0,0.01529561]
[1736305385912,1.630893,96823.0,96822.0,0.01017228]
[1736305386121,0.023,96822.0,96813.0,0.00091835]
[1736305386318,1.630893,96822.0,96814.0,0.09903441]
[1736305386549,0.023,96820.0,96815.0,0.0066219]
[1736305386751,1.607893,96819.0,96815.0,0.0066219]
[1736305386950,0.023,96818.0,96815.0,0.0066219]
[1736305387172,1.62531632,96817.0,96816.0,0.01017551]
[1736305387398,1.625317,96817.0,96816.0,0.01017551]
[1736305387604,1.625317,96817.0,96816.0,0.11675051]
[1736305387605,0.160685,96817.0,96816.0,0.11675051]
[1736305387814,0.160685,96817.0,96816.0,0.2330373]
[1736305388016,0.01036109,96857.0,96820.0,0.1]
[1736305388224,0.023,96837.0,96822.0,0.206563]
[1736305388472,0.15,96855.0,96821.0,0.16187219]
[1736305388473,0.206539,96834.0,96823.0,0.09995239]
[1736305388681,1.625317,96833.0,96823.0,0.09995239]
[1736305388887,0.023,96831.0,96821.0,0.0330844]
[1736305389097,0.023,96829.0,96828.0,0.18385605]
[1736305389310,1.625317,96829.0,96828.0,0.18385605]
[1736305389541,1.513549,96829.0,96828.0,0.18385605]
[1736305389744,1.115107,96829.0,96828.0,0.18385605]
[1736305389953,1.115107,96829.0,96828.0,0.14911254]
[1736305390600,1.115107,96829.0,96828.0,0.16539561]
[1736305390976,1.115107,96829.0,96828.0,0.36872098]
[1736305391209,1.115107,96829.0,96828.0,0.35243791]
[1736305391750,1.115107,96829.0,96828.0,0.35343791]
[1736305391949,1.115107,96829.0,96828.0,0.35243791]
[1736305392355,1.115107,96829.0,96828.0,0.35343791]
[1736305392560,1.115107,96829.0,96828.0,0.35243791]
[1736305392742,1.115107,96829.0,96828.0,0.3422624]
[1736305393568,1.265107,96829.0,96828.0,0.34740964]
[1736305393976,1.265107,96829.0,96828.0,0.34840964]
[1736305394177,1.265107,96829.0,96828.0,0.00614724]
[1736305394377,0.023,96827.0,96824.0,0.09275614]
[1736305394594,0.023,96825.0,96824.0,0.09275614]
[1736305394796,1.625317,96825.0,96824.0,0.09275614]
[1736305395433,1.625317,96825.0,96820.0,0.09275614]
[1736305395434,0.20656,96824.0,96820.0,0.09275614]
[1736305395627,1.602317,96824.0,96820.0,0.09275614]
[1736305395867,0.206549,96830.0,96820.0,0.09275614]
[1736305396062,0.023,96828.0,96821.0,0.00091831]
[1736305396310,0.001,96825.0,96821.0,0.206566]
[1736305396529,1.248187,96824.0,96823.0,0.18548769]
[1736305397097,1.248187,96824.0,96823.0,0.20082888]
[1736305397298,1.248187,96824.0,96823.0,0.3577711]
[1736305398086,0.206545,96831.0,96823.0,0.3577711]
[1736305398283,0.206549,96829.0,96823.0,0.58450336]
[1736305398527,0.206549,96829.0,96824.0,0.0051643]
[1736305398528,1.602317,96828.0,96824.0,0.0051643]
[1736305398908,0.206549,96829.0,96824.0,0.0051643]
[1736305399114,1.602317,96828.0,96824.0,0.0051643]
[1736305399491,1.602317,96828.0,96825.0,0.14932962]
[1736305399939,0.206553,96827.0,96826.0,0.0051643]
[1736305400146,1.80887,96827.0,96825.0,0.14932962]
[1736305400346,1.602317,96826.0,96825.0,0.1391498]
[1736305400990,1.602317,96826.0,96823.0,0.09279305]
[1736305401399,0.206558,96825.0,96824.0,0.001]
[1736305401597,1.808875,96825.0,96824.0,0.09279305]
[1736305401975,1.831875,96825.0,96824.0,0.09279305]
[1736305402578,0.023,96824.0,96823.0,0.001]
[1736305402832,0.023,96822.0,96817.0,0.09279305]
[1736305403033,0.206571,96819.0,96817.0,0.09279305]
[1736305403326,0.206591,96810.0,96807.0,0.09279305]
[1736305403563,1.602317,96809.0,96807.0,0.09294625]
[1736305403694,0.774265,96809.0,96807.0,0.09294625]
[1736305403899,0.994725,96811.0,96807.0,0.09294625]
[1736305404117,0.780879,96811.0,96808.0,0.09995312]
[1736305404332,0.206564,96822.0,96808.0,0.30654712]
[1736305404537,1.602317,96821.0,96808.0,0.09995312]
[1736305404741,0.206583,96814.0,96808.0,0.00091871]
[1736305404954,0.206583,96813.0,96807.0,0.0001532]
[1736305405192,1.8089,96813.0,96809.0,0.53831354]
[1736305405403,0.206586,96812.0,96809.0,0.53831354]
[1736305405612,1.808903,96812.0,96809.0,0.53831354]
[1736305405825,1.602317,96811.0,96809.0,0.52813308]
[1736305406101,0.20659,96810.0,96808.0,0.09281542]
[1736305406327,1.602317,96809.0,96808.0,0.09281542]
[1736305406679,0.206585,96812.0,96808.0,0.09281542]
[1736305406884,1.602317,96811.0,96809.0,0.09281542]
[1736305407263,0.023,96810.0,96809.0,0.09281542]
[1736305407466,0.023,96810.0,96808.0,0.09281542]
[1736305407467,1.625317,96810.0,96808.0,0.09281542]
[1736305407665,1.602317,96809.0,96808.0,0.09281542]
[1736305408493,1.602317,96809.0,96807.0,0.0001532]
[1736305408494,0.206594,96808.0,96807.0,0.0001532]
[1736305408703,1.675471,96808.0,96807.0,0.0001532]
[1736305408857,1.808911,96808.0,96807.0,0.0001532]
[1736305410942,1.812911,96808.0,96807.0,0.0001532]
[1736305413215,1.835911,96808.0,96807.0,0.0001532]
[1736305414199,1.831911,96808.0,96807.0,0.0001532]
[1736305415192,2.08594541,96808.0,96807.0,0.0011532]
[1736305415425,2.56419257,96808.0,96807.0,2e-07]
[1736305415654,1.05082346,96808.0,96807.0,2e-07]
[1736305415861,1.15082346,96808.0,96807.0,2e-07]
[1736305416080,1.05178905,96808.0,96807.0,2e-07]
[1736305416254,1.06199814,96808.0,96807.0,2e-07]
[1736305416512,0.69226299,96808.0,96807.0,2e-07]
[1736305416724,0.6813175,96808.0,96807.0,2e-07]
[1736305416940,0.6184375,96808.0,96807.0,2e-07]
[1736305417155,0.206645,96785.0,96781.0,8.53e-05]
[1736305417331,1.602317,96784.0,96781.0,8.53e-05]
[1736305417588,0.990889,96783.0,96782.0,0.0791]
[1736305417806,0.606489,96783.0,96782.0,0.0791]
[1736305418031,1.602317,96790.0,96782.0,0.0791]
[1736305418252,1.402056,96790.0,96782.0,0.08001934]
[1736305418480,0.719392,96789.0,96783.0,0.20756634]
[1736305418827,0.206615,96798.0,96783.0,0.21228401]